[Event "Titled Tuesday Blitz February 14 Early 2023"]
[White "Osuna Vega, Enrique"]
[Black "Floresvillar Gonzalez, Luis Migu"]
[WhiteFideId "2219549"]
[BlackFideId "5100542"]
[WhiteElo "2061"]
[BlackElo "2043"]
[Result "1-0"]
[Round "08"]
[TimeControl "180+2"]
[Date "2023.02.14"]
[WhiteClock "0:00:14"]
[BlackClock "0:00:36"]

1. e4 {[%clk 0:03:00]}  e5 {[%clk 0:02:58]} 2. Nf3 {[%clk 0:03:00]}  Nc6 {[%clk 0:02:58]} 3. Bb5 {[%clk 0:03:00]}  Nf6 {[%clk 0:02:57]} 4. d3 {[%clk 0:03:00]}  Qe7 {[%clk 0:02:48]} 5. Nc3 {[%clk 0:02:53]}  Nd4 {[%clk 0:02:46]} 6. Bc4 {[%clk 0:02:47]}  c6 {[%clk 0:02:41]} 7. Bg5 {[%clk 0:02:45]}  d6 {[%clk 0:02:39]} 8. h3 {[%clk 0:02:44]}  Be6 {[%clk 0:02:36]} 9. Bxe6 {[%clk 0:02:31]}  fxe6 {[%clk 0:02:36]} 10. Nxd4 {[%clk 0:02:21]}  exd4 {[%clk 0:02:35]} 11. Ne2 {[%clk 0:02:22]}  c5 {[%clk 0:02:32]} 12. f4 {[%clk 0:02:16]}  h6 {[%clk 0:02:30]} 13. Bh4 {[%clk 0:02:16]}  g6 {[%clk 0:02:30]} 14. e5 {[%clk 0:02:12]}  g5 {[%clk 0:01:55]} 15. exf6 {[%clk 0:01:57]}  Qxf6 {[%clk 0:01:55]} 16. Bg3 {[%clk 0:01:53]}  O-O-O {[%clk 0:01:53]} 17. Qd2 {[%clk 0:01:48]}  Be7 {[%clk 0:01:48]} 18. O-O-O {[%clk 0:01:42]}  gxf4 {[%clk 0:01:42]} 19. Bxf4 {[%clk 0:01:28]}  e5 {[%clk 0:01:41]} 20. Bh2 {[%clk 0:01:21]}  Qg7 {[%clk 0:01:40]} 21. Kb1 {[%clk 0:01:10]}  Qxg2 {[%clk 0:01:39]} 22. Rdg1 {[%clk 0:01:05]}  Qc6 {[%clk 0:01:37]} 23. Ng3 {[%clk 0:01:00]}  Bg5 {[%clk 0:01:36]} 24. Qg2 {[%clk 0:00:57]}  d5 {[%clk 0:01:28]} 25. Nf5 {[%clk 0:00:52]}  Rhe8 {[%clk 0:01:18]} 26. h4 {[%clk 0:00:46]}  Bf4 {[%clk 0:01:07]} 27. Bxf4 {[%clk 0:00:43]}  exf4 {[%clk 0:01:07]} 28. Qg4 {[%clk 0:00:42]}  Kb8 {[%clk 0:00:54]} 29. Qxf4+ {[%clk 0:00:42]}  Ka8 {[%clk 0:00:54]} 30. Qxh6 {[%clk 0:00:40]}  Re6 {[%clk 0:00:53]} 31. Qg5 {[%clk 0:00:36]}  Rde8 {[%clk 0:00:53]} 32. Ng7 {[%clk 0:00:29]}  Re5 {[%clk 0:00:52]} 33. Nxe8 {[%clk 0:00:18]}  Rxg5 {[%clk 0:00:51]} 34. hxg5 {[%clk 0:00:19]}  Qxe8 {[%clk 0:00:50]} 35. g6 {[%clk 0:00:19]}  Qe3 {[%clk 0:00:36]} 36. Rh8+ {[%clk 0:00:14]} 1-0


[Site "https://www.chess.com"]

[Event "Titled Tuesday Blitz February 14 Early 2023"]
[White "ArchibaldCerveza29"]
[Black "Tsotsonava, Elene"]
[BlackFideId "13615939"]
[WhiteElo "2506"]
[BlackElo "2053"]
[Result "0-1"]
[Round "08"]
[TimeControl "180+2"]
[Date "2023.02.14"]
[WhiteClock "0:00:22"]
[BlackClock "0:00:27"]

1. e4 {[%clk 0:03:00]}  c5 {[%clk 0:02:57]} 2. Nf3 {[%clk 0:03:00]}  e6 {[%clk 0:02:57]} 3. d4 {[%clk 0:02:59]}  cxd4 {[%clk 0:02:58]} 4. Nxd4 {[%clk 0:02:59]}  Nc6 {[%clk 0:02:58]} 5. Nc3 {[%clk 0:02:58]}  Qc7 {[%clk 0:02:59]} 6. Be3 {[%clk 0:02:54]}  a6 {[%clk 0:02:59]} 7. Qf3 {[%clk 0:02:52]}  Bd6 {[%clk 0:02:53]} 8. O-O-O {[%clk 0:02:50]}  Be5 {[%clk 0:02:54]} 9. g4 {[%clk 0:02:41]}  Nge7 {[%clk 0:02:26]} 10. h4 {[%clk 0:02:37]}  b5 {[%clk 0:02:21]} 11. Kb1 {[%clk 0:02:29]}  Bb7 {[%clk 0:02:17]} 12. h5 {[%clk 0:02:20]}  h6 {[%clk 0:01:58]} 13. Nxc6 {[%clk 0:01:58]}  Bxc6 {[%clk 0:01:49]} 14. Bc1 {[%clk 0:01:45]}  b4 {[%clk 0:01:43]} 15. Ne2 {[%clk 0:01:44]}  a5 {[%clk 0:01:34]} 16. Qd3 {[%clk 0:01:40]}  d5 {[%clk 0:01:26]} 17. f4 {[%clk 0:01:18]}  dxe4 {[%clk 0:01:19]} 18. Qc4 {[%clk 0:01:18]}  Bd6 {[%clk 0:01:13]} 19. Nd4 {[%clk 0:00:40]}  Bd5 {[%clk 0:01:05]} 20. Qb5+ {[%clk 0:00:37]}  Kf8 {[%clk 0:00:56]} 21. f5 {[%clk 0:00:30]}  e5 {[%clk 0:00:49]} 22. Ne2 {[%clk 0:00:22]}  Rc8 {[%clk 0:00:45]} 23. c3 {[%clk 0:00:16]}  Bc4 {[%clk 0:00:35]} 24. Qa4 {[%clk 0:00:15]}  Bd3+ {[%clk 0:00:36]} 25. Ka1 {[%clk 0:00:14]}  Nd5 {[%clk 0:00:29]} 26. Bd2 {[%clk 0:00:11]}  Nb6 {[%clk 0:00:21]} 27. Qxa5 {[%clk 0:00:10]}  Ra8 {[%clk 0:00:20]} 28. cxb4 {[%clk 0:00:07]}  Rxa5 {[%clk 0:00:20]} 29. bxa5 {[%clk 0:00:08]}  Nc4 {[%clk 0:00:20]} 30. Nc3 {[%clk 0:00:07]}  Qxa5 {[%clk 0:00:19]} 31. Bxd3 {[%clk 0:00:06]}  exd3 {[%clk 0:00:15]} 32. Ne4 {[%clk 0:00:06]}  Bb4 {[%clk 0:00:14]} 33. Bxb4+ {[%clk 0:00:05]}  Qxb4 {[%clk 0:00:15]} 34. Rh2 {[%clk 0:00:05]}  d2 {[%clk 0:00:15]} 35. Rb1 {[%clk 0:00:05]}  d1=Q {[%clk 0:00:14]} 36. Rxd1 {[%clk 0:00:05]}  f6 {[%clk 0:00:13]} 37. Rc2 {[%clk 0:00:04]}  Kf7 {[%clk 0:00:13]} 38. a3 {[%clk 0:00:04]}  Qb3 {[%clk 0:00:12]} 39. Kb1 {[%clk 0:00:03]}  Nxa3+ {[%clk 0:00:12]} 40. Ka1 {[%clk 0:00:04]}  Nxc2+ {[%clk 0:00:12]} 41. Kb1 {[%clk 0:00:04]}  Na3+ {[%clk 0:00:13]} 42. Ka1 {[%clk 0:00:04]}  Qxd1+ {[%clk 0:00:12]} 43. Ka2 {[%clk 0:00:04]}  Qd5+ {[%clk 0:00:12]} 44. Kxa3 {[%clk 0:00:04]}  Qxe4 {[%clk 0:00:13]} 45. g5 {[%clk 0:00:05]}  Qxf5 {[%clk 0:00:13]} 46. g6+ {[%clk 0:00:06]}  Qxg6 {[%clk 0:00:13]} 47. hxg6+ {[%clk 0:00:07]}  Kxg6 {[%clk 0:00:13]} 48. b4 {[%clk 0:00:07]}  Rb8 {[%clk 0:00:14]} 49. b5 {[%clk 0:00:08]}  h5 {[%clk 0:00:13]} 50. Ka4 {[%clk 0:00:09]}  h4 {[%clk 0:00:14]} 51. Ka5 {[%clk 0:00:09]}  h3 {[%clk 0:00:15]} 52. Ka6 {[%clk 0:00:10]}  h2 {[%clk 0:00:16]} 53. b6 {[%clk 0:00:11]}  Rxb6+ {[%clk 0:00:17]} 54. Ka7 {[%clk 0:00:12]}  h1=Q {[%clk 0:00:17]} 55. Kxb6 {[%clk 0:00:12]}  Qb7+ {[%clk 0:00:17]} 56. Kxb7 {[%clk 0:00:12]}  e4 {[%clk 0:00:18]} 57. Kc6 {[%clk 0:00:13]}  e3 {[%clk 0:00:19]} 58. Kd5 {[%clk 0:00:14]}  e2 {[%clk 0:00:20]} 59. Kd4 {[%clk 0:00:15]}  e1=Q {[%clk 0:00:21]} 60. Kd5 {[%clk 0:00:16]}  Qe5+ {[%clk 0:00:21]} 61. Kc6 {[%clk 0:00:17]}  f5 {[%clk 0:00:22]} 62. Kb7 {[%clk 0:00:18]}  f4 {[%clk 0:00:23]} 63. Ka8 {[%clk 0:00:18]}  f3 {[%clk 0:00:24]} 64. Kb7 {[%clk 0:00:19]}  f2 {[%clk 0:00:25]} 65. Kc8 {[%clk 0:00:20]}  f1=Q {[%clk 0:00:26]} 66. Kd7 {[%clk 0:00:21]}  Qf7+ {[%clk 0:00:26]} 67. Kc8 {[%clk 0:00:22]}  Qee8# {[%clk 0:00:27]} 0-1


[Site "https://www.chess.com"]

[Event "Titled Tuesday Blitz February 14 Early 2023"]
[White "Bharath Subramaniyam H"]
[Black "Andreikin, Dmitry"]
[WhiteFideId "46634827"]
[BlackFideId "4158814"]
[WhiteElo "2517"]
[BlackElo "2729"]
[Result "0-1"]
[Round "09"]
[TimeControl "180+2"]
[Date "2023.02.14"]
[WhiteClock "0:00:02"]
[BlackClock "0:00:06"]

1. e4 {[%clk 0:02:44]}  e6 {[%clk 0:02:53]} 2. d4 {[%clk 0:02:43]}  d5 {[%clk 0:02:53]} 3. Nc3 {[%clk 0:02:43]}  Bb4 {[%clk 0:02:52]} 4. exd5 {[%clk 0:02:43]}  exd5 {[%clk 0:02:52]} 5. Bd3 {[%clk 0:02:43]}  Nf6 {[%clk 0:02:50]} 6. a3 {[%clk 0:02:43]}  Bd6 {[%clk 0:02:47]} 7. Nge2 {[%clk 0:02:42]}  c6 {[%clk 0:02:47]} 8. O-O {[%clk 0:02:36]}  O-O {[%clk 0:02:47]} 9. Bf4 {[%clk 0:02:34]}  Bg4 {[%clk 0:02:45]} 10. f3 {[%clk 0:02:33]}  Bh5 {[%clk 0:02:44]} 11. Qd2 {[%clk 0:02:33]}  Bg6 {[%clk 0:02:43]} 12. Rae1 {[%clk 0:02:31]}  Bxd3 {[%clk 0:02:38]} 13. Qxd3 {[%clk 0:02:31]}  Re8 {[%clk 0:02:38]} 14. Na4 {[%clk 0:02:13]}  Na6 {[%clk 0:02:22]} 15. Bxd6 {[%clk 0:02:08]}  Qxd6 {[%clk 0:02:21]} 16. Ng3 {[%clk 0:02:08]}  g6 {[%clk 0:02:16]} 17. b4 {[%clk 0:02:04]}  Nc7 {[%clk 0:02:07]} 18. Nb2 {[%clk 0:01:39]}  a5 {[%clk 0:02:01]} 19. Qd2 {[%clk 0:01:29]}  axb4 {[%clk 0:01:46]} 20. axb4 {[%clk 0:01:30]}  Nb5 {[%clk 0:01:43]} 21. Ra1 {[%clk 0:01:22]}  Na3 {[%clk 0:01:30]} 22. c3 {[%clk 0:01:13]}  Ra7 {[%clk 0:01:26]} 23. Rfe1 {[%clk 0:01:11]}  Rxe1+ {[%clk 0:01:20]} 24. Rxe1 {[%clk 0:01:10]}  Nb5 {[%clk 0:01:18]} 25. Qg5 {[%clk 0:00:57]}  Kh8 {[%clk 0:00:56]} 26. Nd3 {[%clk 0:00:42]}  Ra8 {[%clk 0:00:56]} 27. Ne5 {[%clk 0:00:42]}  Rf8 {[%clk 0:00:57]} 28. Re3 {[%clk 0:00:30]}  Nc7 {[%clk 0:00:47]} 29. h4 {[%clk 0:00:21]}  Ng8 {[%clk 0:00:42]} 30. Qf4 {[%clk 0:00:21]}  Qf6 {[%clk 0:00:38]} 31. Qg4 {[%clk 0:00:21]}  Nh6 {[%clk 0:00:25]} 32. Qg5 {[%clk 0:00:18]}  Ng8 {[%clk 0:00:20]} 33. Nd7 {[%clk 0:00:15]}  Qxg5 {[%clk 0:00:20]} 34. hxg5 {[%clk 0:00:16]}  Re8 {[%clk 0:00:18]} 35. Rxe8 {[%clk 0:00:15]}  Nxe8 {[%clk 0:00:19]} 36. Nc5 {[%clk 0:00:15]}  Nd6 {[%clk 0:00:19]} 37. Ne2 {[%clk 0:00:13]}  Kg7 {[%clk 0:00:19]} 38. Nf4 {[%clk 0:00:13]}  h6 {[%clk 0:00:19]} 39. gxh6+ {[%clk 0:00:13]}  Nxh6 {[%clk 0:00:19]} 40. Kf2 {[%clk 0:00:13]}  Nhf5 {[%clk 0:00:19]} 41. g4 {[%clk 0:00:12]}  Ne7 {[%clk 0:00:20]} 42. Ke2 {[%clk 0:00:09]}  b6 {[%clk 0:00:19]} 43. Nd7 {[%clk 0:00:09]}  b5 {[%clk 0:00:17]} 44. Ne5 {[%clk 0:00:08]}  f6 {[%clk 0:00:15]} 45. Ne6+ {[%clk 0:00:08]}  Kg8 {[%clk 0:00:16]} 46. Nd7 {[%clk 0:00:08]}  Kf7 {[%clk 0:00:13]} 47. Nec5 {[%clk 0:00:08]}  g5 {[%clk 0:00:12]} 48. Kd3 {[%clk 0:00:07]}  Ng6 {[%clk 0:00:11]} 49. Nb8 {[%clk 0:00:07]}  Ne7 {[%clk 0:00:11]} 50. Nbd7 {[%clk 0:00:06]}  Nc4 {[%clk 0:00:10]} 51. Nb7 {[%clk 0:00:05]}  Ke6 {[%clk 0:00:08]} 52. Ndc5+ {[%clk 0:00:05]}  Kf7 {[%clk 0:00:09]} 53. Nd7 {[%clk 0:00:05]}  Ke6 {[%clk 0:00:09]} 54. Ndc5+ {[%clk 0:00:05]}  Kf7 {[%clk 0:00:09]} 55. Nd8+ {[%clk 0:00:06]}  Ke8 {[%clk 0:00:09]} 56. Nde6 {[%clk 0:00:06]}  Ng6 {[%clk 0:00:10]} 57. Nc7+ {[%clk 0:00:05]}  Ke7 {[%clk 0:00:10]} 58. N7a6 {[%clk 0:00:05]}  Nf4+ {[%clk 0:00:10]} 59. Kc2 {[%clk 0:00:05]}  Ne3+ {[%clk 0:00:10]} 60. Kb3 {[%clk 0:00:05]}  Ne2 {[%clk 0:00:08]} 61. Nb8 {[%clk 0:00:05]}  Kd6 {[%clk 0:00:08]} 62. Nba6 {[%clk 0:00:02]}  Ng1 {[%clk 0:00:08]} 63. Nb7+ {[%clk 0:00:03]}  Ke7 {[%clk 0:00:08]} 64. Nb8 {[%clk 0:00:02]}  Nxf3 {[%clk 0:00:07]} 65. Nxc6+ {[%clk 0:00:03]}  Ke6 {[%clk 0:00:07]} 66. Na7 {[%clk 0:00:03]}  Nxg4 {[%clk 0:00:07]} 67. Nxb5 {[%clk 0:00:03]}  Ne3 {[%clk 0:00:07]} 68. Nc5+ {[%clk 0:00:04]}  Ke7 {[%clk 0:00:07]} 69. Nc7 {[%clk 0:00:04]}  g4 {[%clk 0:00:05]} 70. b5 {[%clk 0:00:03]}  g3 {[%clk 0:00:05]} 71. b6 {[%clk 0:00:02]}  g2 {[%clk 0:00:06]} 72. b7 {[%clk 0:00:02]}  g1=Q {[%clk 0:00:06]} 73. Nb5 {[%clk 0:00:02]}  Qb1+ {[%clk 0:00:06]} 74. Ka4 {[%clk 0:00:02]}  Qa2+ {[%clk 0:00:06]} 75. Na3 {[%clk 0:00:03]}  Nc4 {[%clk 0:00:05]} 76. b8=Q {[%clk 0:00:02]}  Qxa3+ {[%clk 0:00:05]} 77. Kb5 {[%clk 0:00:02]}  Qb2+ {[%clk 0:00:06]} 0-1


[Site "https://www.chess.com"]

[Event "Titled Tuesday Blitz February 14 Early 2023"]
[White "Gharibyan, Mamikon"]
[Black "Le, Tuan Minh"]
[WhiteFideId "13308300"]
[BlackFideId "12401153"]
[WhiteElo "2500"]
[BlackElo "2542"]
[Result "0-1"]
[Round "09"]
[TimeControl "180+2"]
[Date "2023.02.14"]
[WhiteClock "0:00:05"]
[BlackClock "0:00:16"]

1. e4 {[%clk 0:03:00]}  c5 {[%clk 0:02:59]} 2. Nf3 {[%clk 0:03:00]}  Nf6 {[%clk 0:02:59]} 3. Nc3 {[%clk 0:02:57]}  d5 {[%clk 0:02:59]} 4. exd5 {[%clk 0:02:54]}  Nxd5 {[%clk 0:03:00]} 5. Bc4 {[%clk 0:02:52]}  Nb6 {[%clk 0:03:00]} 6. Bb5+ {[%clk 0:02:51]}  Bd7 {[%clk 0:03:00]} 7. a4 {[%clk 0:02:51]}  a6 {[%clk 0:02:56]} 8. Bxd7+ {[%clk 0:02:49]}  Qxd7 {[%clk 0:02:56]} 9. a5 {[%clk 0:02:31]}  Nd5 {[%clk 0:02:55]} 10. O-O {[%clk 0:02:23]}  Nc6 {[%clk 0:01:58]} 11. Na4 {[%clk 0:02:05]}  Qd6 {[%clk 0:01:57]} 12. c3 {[%clk 0:01:45]}  e6 {[%clk 0:01:55]} 13. d4 {[%clk 0:01:39]}  cxd4 {[%clk 0:01:56]} 14. Nxd4 {[%clk 0:01:40]}  Be7 {[%clk 0:01:56]} 15. Nb3 {[%clk 0:00:59]}  Qc7 {[%clk 0:01:42]} 16. Qg4 {[%clk 0:00:53]}  O-O {[%clk 0:01:39]} 17. Bh6 {[%clk 0:00:39]}  Bf6 {[%clk 0:01:39]} 18. Nac5 {[%clk 0:00:39]}  Rad8 {[%clk 0:01:08]} 19. Ne4 {[%clk 0:00:35]}  Be5 {[%clk 0:01:08]} 20. Bg5 {[%clk 0:00:21]}  f5 {[%clk 0:00:56]} 21. Qh3 {[%clk 0:00:20]}  Rde8 {[%clk 0:00:30]} 22. Nec5 {[%clk 0:00:19]}  Bd6 {[%clk 0:00:28]} 23. Rad1 {[%clk 0:00:16]}  Ne5 {[%clk 0:00:27]} 24. Nxe6 {[%clk 0:00:14]}  Rxe6 {[%clk 0:00:26]} 25. Rxd5 {[%clk 0:00:15]}  Qc4 {[%clk 0:00:27]} 26. Rfd1 {[%clk 0:00:13]}  Nf7 {[%clk 0:00:18]} 27. Qxf5 {[%clk 0:00:06]}  Rfe8 {[%clk 0:00:18]} 28. Be3 {[%clk 0:00:05]}  Qxb3 {[%clk 0:00:18]} 29. h4 {[%clk 0:00:05]}  Re5 {[%clk 0:00:16]} 30. Rxe5 {[%clk 0:00:05]}  Qxd1+ {[%clk 0:00:16]} 0-1


[Site "https://www.chess.com"]

[Event "Titled Tuesday Blitz February 14 Early 2023"]
[White "Wagh Suyog"]
[Black "Vokhidov, Shamsiddin"]
[WhiteFideId "25071688"]
[BlackFideId "14204223"]
[WhiteElo "2313"]
[BlackElo "2586"]
[Result "0-1"]
[Round "09"]
[TimeControl "180+2"]
[Date "2023.02.14"]
[WhiteClock "0:00:03"]
[BlackClock "0:00:16"]

1. e4 {[%clk 0:03:00]}  c5 {[%clk 0:03:00]} 2. Nf3 {[%clk 0:02:57]}  e6 {[%clk 0:03:00]} 3. d4 {[%clk 0:02:57]}  cxd4 {[%clk 0:03:01]} 4. Nxd4 {[%clk 0:02:58]}  Nc6 {[%clk 0:03:02]} 5. Nc3 {[%clk 0:02:56]}  Qc7 {[%clk 0:03:02]} 6. g3 {[%clk 0:02:54]}  a6 {[%clk 0:03:02]} 7. Bg2 {[%clk 0:02:50]}  h5 {[%clk 0:03:02]} 8. h3 {[%clk 0:02:41]}  h4 {[%clk 0:03:01]} 9. g4 {[%clk 0:02:40]}  Nxd4 {[%clk 0:02:59]} 10. Qxd4 {[%clk 0:02:40]}  Ne7 {[%clk 0:03:00]} 11. f4 {[%clk 0:02:29]}  Nc6 {[%clk 0:02:55]} 12. Qf2 {[%clk 0:02:25]}  b5 {[%clk 0:02:53]} 13. Be3 {[%clk 0:02:24]}  Bb4 {[%clk 0:02:20]} 14. O-O {[%clk 0:02:20]}  Bb7 {[%clk 0:02:19]} 15. Rad1 {[%clk 0:02:17]}  Rc8 {[%clk 0:02:12]} 16. Ne2 {[%clk 0:02:05]}  Be7 {[%clk 0:02:08]} 17. c3 {[%clk 0:02:00]}  d6 {[%clk 0:02:04]} 18. Bf3 {[%clk 0:01:45]}  Qb8 {[%clk 0:01:59]} 19. Rd3 {[%clk 0:01:40]}  Na5 {[%clk 0:01:55]} 20. b3 {[%clk 0:01:32]}  O-O {[%clk 0:01:52]} 21. g5 {[%clk 0:00:50]}  Qa8 {[%clk 0:01:51]} 22. Qg2 {[%clk 0:00:50]}  Nc6 {[%clk 0:01:22]} 23. Bf2 {[%clk 0:00:49]}  Nb8 {[%clk 0:01:14]} 24. Bxh4 {[%clk 0:00:48]}  Nd7 {[%clk 0:01:14]} 25. Bf2 {[%clk 0:00:43]}  Nc5 {[%clk 0:01:12]} 26. Re3 {[%clk 0:00:43]}  Rfd8 {[%clk 0:01:04]} 27. h4 {[%clk 0:00:42]}  d5 {[%clk 0:01:04]} 28. exd5 {[%clk 0:00:36]}  Bxd5 {[%clk 0:01:05]} 29. Bxd5 {[%clk 0:00:35]}  Rxd5 {[%clk 0:01:03]} 30. Ng3 {[%clk 0:00:25]}  Nd3 {[%clk 0:01:01]} 31. Ne4 {[%clk 0:00:15]}  Nxf4 {[%clk 0:00:58]} 32. Qf3 {[%clk 0:00:08]}  Rf5 {[%clk 0:00:57]} 33. Qg4 {[%clk 0:00:07]}  Ng6 {[%clk 0:00:41]} 34. Rfe1 {[%clk 0:00:07]}  Ne5 {[%clk 0:00:40]} 35. Qg2 {[%clk 0:00:05]}  Qd5 {[%clk 0:00:31]} 36. Bg3 {[%clk 0:00:04]}  Ng4 {[%clk 0:00:17]} 37. R3e2 {[%clk 0:00:05]}  Bc5+ {[%clk 0:00:17]} 38. Nxc5 {[%clk 0:00:04]}  Qxc5+ {[%clk 0:00:18]} 39. Kh1 {[%clk 0:00:05]}  Qxc3 {[%clk 0:00:16]} 40. Rd1 {[%clk 0:00:04]}  Ne3 {[%clk 0:00:12]} 41. Rxe3 {[%clk 0:00:03]}  Qxe3 {[%clk 0:00:13]} 42. Re1 {[%clk 0:00:03]}  Qf3 {[%clk 0:00:12]} 43. Qxf3 {[%clk 0:00:03]}  Rxf3 {[%clk 0:00:13]} 44. Kg2 {[%clk 0:00:04]}  Rd3 {[%clk 0:00:14]} 45. Re2 {[%clk 0:00:03]}  Rcc3 {[%clk 0:00:14]} 46. Be5 {[%clk 0:00:03]}  Rc1 {[%clk 0:00:14]} 47. h5 {[%clk 0:00:02]}  Rcd1 {[%clk 0:00:14]} 48. Bf4 {[%clk 0:00:01]}  Rd4 {[%clk 0:00:14]} 49. Kf3 {[%clk 0:00:01]}  Rf1+ {[%clk 0:00:14]} 50. Ke3 {[%clk 0:00:01]}  Rfxf4 {[%clk 0:00:12]} 51. Rc2 {[%clk 0:00:01]}  Rfe4+ {[%clk 0:00:12]} 52. Kf3 {[%clk 0:00:02]}  Re5 {[%clk 0:00:13]} 53. g6 {[%clk 0:00:02]}  fxg6 {[%clk 0:00:13]} 54. hxg6 {[%clk 0:00:02]}  Rf5+ {[%clk 0:00:14]} 55. Ke3 {[%clk 0:00:03]}  Rd8 {[%clk 0:00:13]} 56. Rc6 {[%clk 0:00:03]}  Rf6 {[%clk 0:00:13]} 57. Rc7 {[%clk 0:00:02]}  Rxg6 {[%clk 0:00:14]} 58. Ke4 {[%clk 0:00:03]}  Rf6 {[%clk 0:00:13]} 59. Ke5 {[%clk 0:00:03]}  Rd5+ {[%clk 0:00:14]} 60. Ke4 {[%clk 0:00:03]}  b4 {[%clk 0:00:14]} 61. Rb7 {[%clk 0:00:03]}  a5 {[%clk 0:00:15]} 62. Rc7 {[%clk 0:00:03]}  Kh7 {[%clk 0:00:15]} 63. Rc1 {[%clk 0:00:02]}  g5 {[%clk 0:00:15]} 64. Rh1+ {[%clk 0:00:03]}  Kg6 {[%clk 0:00:15]} 65. Rh8 {[%clk 0:00:03]}  g4 {[%clk 0:00:16]} 66. Rg8+ {[%clk 0:00:03]}  Kh5 {[%clk 0:00:16]} 67. Rh8+ {[%clk 0:00:04]}  Rh6 {[%clk 0:00:16]} 68. Re8 {[%clk 0:00:03]}  Kg5 {[%clk 0:00:15]} 69. Rg8+ {[%clk 0:00:03]}  Kh4 {[%clk 0:00:15]} 70. Kf4 {[%clk 0:00:03]}  Rf5+ {[%clk 0:00:15]} 71. Ke4 {[%clk 0:00:03]}  g3 {[%clk 0:00:16]} 72. Re8 {[%clk 0:00:02]}  g2 {[%clk 0:00:16]} 73. Rg8 {[%clk 0:00:02]}  Rg5 {[%clk 0:00:16]} 74. Rf8 {[%clk 0:00:02]}  g1=Q {[%clk 0:00:16]} 75. Rf4+ {[%clk 0:00:03]}  Rg4 {[%clk 0:00:16]} 76. Ke5 {[%clk 0:00:02]}  Qe3+ {[%clk 0:00:16]} 77. Kd6 {[%clk 0:00:02]}  Qxf4+ {[%clk 0:00:17]} 78. Ke7 {[%clk 0:00:03]}  Qc7+ {[%clk 0:00:16]} 79. Ke8 {[%clk 0:00:03]}  Rh8# {[%clk 0:00:16]} 0-1


[Site "https://www.chess.com"]

[Event "Titled Tuesday Blitz February 14 Early 2023"]
[White "Sarana, Alexey"]
[Black "Grigoriants, Sergey"]
[WhiteFideId "24133795"]
[BlackFideId "4130804"]
[WhiteElo "2685"]
[BlackElo "2562"]
[Result "1-0"]
[Round "09"]
[TimeControl "180+2"]
[Date "2023.02.14"]
[WhiteClock "0:01:36"]
[BlackClock "0:00:07"]

1. c4 {[%clk 0:03:00]}  e5 {[%clk 0:02:58]} 2. Nc3 {[%clk 0:02:59]}  Nf6 {[%clk 0:02:57]} 3. Nf3 {[%clk 0:02:59]}  Nc6 {[%clk 0:02:55]} 4. g3 {[%clk 0:03:00]}  Bb4 {[%clk 0:02:49]} 5. Nd5 {[%clk 0:03:00]}  Bc5 {[%clk 0:02:46]} 6. Bg2 {[%clk 0:03:00]}  d6 {[%clk 0:02:45]} 7. e3 {[%clk 0:02:59]}  O-O {[%clk 0:02:24]} 8. O-O {[%clk 0:02:58]}  Bb6 {[%clk 0:02:23]} 9. a4 {[%clk 0:02:56]}  Ba5 {[%clk 0:02:10]} 10. d4 {[%clk 0:02:46]}  exd4 {[%clk 0:02:02]} 11. Nxd4 {[%clk 0:02:45]}  Nxd5 {[%clk 0:01:56]} 12. cxd5 {[%clk 0:02:34]}  Nxd4 {[%clk 0:01:50]} 13. Qxd4 {[%clk 0:02:34]}  Bb6 {[%clk 0:01:48]} 14. Qc3 {[%clk 0:02:33]}  a5 {[%clk 0:01:48]} 15. b3 {[%clk 0:02:33]}  Bd7 {[%clk 0:01:43]} 16. Bb2 {[%clk 0:02:33]}  f6 {[%clk 0:01:43]} 17. h4 {[%clk 0:02:31]}  Qe7 {[%clk 0:01:41]} 18. Bf3 {[%clk 0:02:19]}  Bc5 {[%clk 0:01:41]} 19. Kg2 {[%clk 0:02:19]}  b6 {[%clk 0:01:41]} 20. h5 {[%clk 0:02:18]}  Bf5 {[%clk 0:01:33]} 21. Qc4 {[%clk 0:02:17]}  Rae8 {[%clk 0:01:29]} 22. Rac1 {[%clk 0:02:11]}  Be4 {[%clk 0:01:19]} 23. Bxe4 {[%clk 0:02:08]}  Qxe4+ {[%clk 0:01:19]} 24. Qxe4 {[%clk 0:02:09]}  Rxe4 {[%clk 0:01:19]} 25. Rc4 {[%clk 0:02:09]}  Rfe8 {[%clk 0:01:18]} 26. Kf3 {[%clk 0:02:03]}  f5 {[%clk 0:01:13]} 27. Rfc1 {[%clk 0:01:55]}  Kf7 {[%clk 0:01:13]} 28. Rxe4 {[%clk 0:01:50]}  Rxe4 {[%clk 0:01:09]} 29. Rc4 {[%clk 0:01:49]}  Rxc4 {[%clk 0:00:28]} 30. bxc4 {[%clk 0:01:50]}  Bb4 {[%clk 0:00:24]} 31. g4 {[%clk 0:01:50]}  g6 {[%clk 0:00:23]} 32. gxf5 {[%clk 0:01:47]}  gxh5 {[%clk 0:00:15]} 33. Bd4 {[%clk 0:01:43]}  Be1 {[%clk 0:00:12]} 34. e4 {[%clk 0:01:42]}  Bd2 {[%clk 0:00:12]} 35. Kg3 {[%clk 0:01:42]}  Bg5 {[%clk 0:00:10]} 36. f4 {[%clk 0:01:42]}  Be7 {[%clk 0:00:09]} 37. e5 {[%clk 0:01:41]}  Bd8 {[%clk 0:00:07]} 38. Kf3 {[%clk 0:01:37]}  h4 {[%clk 0:00:07]} 39. Kg4 {[%clk 0:01:36]}  h5+ {[%clk 0:00:07]} 40. Kh3 {[%clk 0:01:36]}  Be7 {[%clk 0:00:07]} 41. e6+ {[%clk 0:01:36]} 1-0


[Site "https://www.chess.com"]